fUSD/lending_fUSD_20260630
["ID","MTS","AMOUNT","RATE_DAILY","PERIOD"]
[426728544,1782762649000,-653.64,0.000314,7]
[426728542,1782762649000,-251.0,0.0003135,2]
[426728543,1782762649000,-475.04571273,0.00031355,30]
[426728551,1782762649000,-500.0,0.00031542,6]
[426728550,1782762649000,-368.88406,0.0003153,10]
[426728554,1782762649000,-151.54121444,0.000316,2]
[426728558,1782762649000,-177.0,0.00031632,30]
[426728552,1782762649000,-161.23928464,0.000316,2]
[426728560,1782762649000,-176.0,0.00031632,30]
[426728556,1782762649000,-151.54121442,0.000316,2]
[426728555,1782762649000,-151.54121442,0.000316,2]
[426728533,1782762649000,-475.04571273,0.0003105,30]
[426728540,1782762649000,-251.0,0.0003135,2]
[426728532,1782762649000,-251.0,0.0003102,2]
[426728521,1782762649000,-500.0,0.00030884,7]
[426728527,1782762649000,-251.0,0.0003102,2]
[426728512,1782762649000,-2570.07,0.000307,7]
[426728511,1782762649000,-653.64,0.000307,7]
[426728503,1782762649000,-251.0,0.0003069,2]
[426728505,1782762649000,-251.0,0.0003069,2]
[426728506,1782762649000,-251.0,0.0003069,2]
[426728507,1782762649000,-251.0,0.0003069,2]
[426728504,1782762649000,-251.0,0.0003069,2]
[426728509,1782762649000,-251.0,0.0003069,2]
[426728510,1782762649000,-251.0,0.0003069,2]
[426728508,1782762649000,-251.0,0.0003069,2]
[426728513,1782762649000,-2251.56,0.000307,7]
[426728515,1782762649000,-1632.96,0.000308,7]
[426728530,1782762649000,-318.49526478,0.0003102,2]
[426728514,1782762649000,-475.04571273,0.00030746,30]
[426728518,1782762649000,-1438.13359369,0.00030846,2]
[426728517,1782762649000,-1365.03904071,0.00030846,2]
[426728524,1782762649000,-1000.0,0.00031,7]
[426728522,1782762649000,-500.0,0.00030992,6]
[426728520,1782762649000,-1294.11098391,0.00030846,2]
[426728516,1782762649000,-1228.58823234,0.00030846,2]
[426728523,1782762649000,-151.83365069,0.00030993,2]
[426728526,1782762649000,-251.0,0.0003102,2]
[426728536,1782762649000,-378.0,0.00031342,3]
[426728525,1782762649000,-150.0,0.00031011,2]
[426728529,1782762649000,-251.0,0.0003102,2]
[426728528,1782762649000,-251.0,0.0003102,2]
[426728519,1782762649000,-1219.63832573,0.00030846,2]
[426728559,1782762649000,-426.0,0.00031632,30]
[426728553,1782762649000,-161.23928464,0.000316,2]
[426728562,1782762649000,-1027.0,0.00031633,30]
[426728596,1782762649000,-475.04571273,0.00032572,30]
[426728589,1782762649000,-475.04571273,0.00032268,30]
[426728593,1782762649000,-198.42932356,0.00032388,7]
[426728594,1782762649000,-160.78665199,0.00032455,7]
[426728599,1782762649000,-426.0,0.00032632,30]
[426728600,1782762649000,-176.0,0.00032632,30]
[426728601,1782762649000,-683.0,0.00032633,30]
[426728598,1782762649000,-177.0,0.00032632,30]
[426728602,1782762649000,-1027.0,0.00032633,30]
[426728605,1782762649000,-3565.0,0.00032635,2]
[426728606,1782762649000,-1362.0,0.00032635,2]
[426728603,1782762649000,-353.0,0.00032633,30]
[426728597,1782762649000,-2000.0,0.00032603,7]
[426728604,1782762649000,-241.2024127,0.00032635,2]
[426728609,1782762649000,-150.0,0.00032635,2]
[426728619,1782762649000,-290.0,0.00032636,30]
[426728611,1782762649000,-935.0,0.00032635,2]
[426728608,1782762649000,-1241.75,0.00032635,2]
[426728612,1782762649000,-150.0,0.00032635,2]
[426728610,1782762649000,-278.0,0.00032635,2]
[426728613,1782762649000,-150.0,0.00032635,2]
[426728615,1782762649000,-168.0,0.00032635,30]
[426728618,1782762649000,-186.0,0.00032636,30]
[426728616,1782762649000,-154.0,0.00032635,30]
[426728614,1782762649000,-6087.0,0.00032635,2]
[426728557,1782762649000,-152.0,0.00031606,9]
[426728607,1782762649000,-1282.745,0.00032635,2]
[426728595,1782762649000,-150.0,0.00032562,2]
[426728617,1782762649000,-790.0,0.00032635,30]
[426728590,1782762649000,-653.64,0.000323,7]
[426728592,1782762649000,-151.83365069,0.00032384,2]
[426728567,1782762649000,-186.0,0.00031636,30]
[426728563,1782762649000,-353.0,0.00031633,30]
[426728564,1782762649000,-168.0,0.00031635,30]
[426728566,1782762649000,-790.0,0.00031635,30]
[426728571,1782762649000,-251.0,0.0003168,2]
[426728569,1782762649000,-475.04571273,0.00031659,30]
[426728570,1782762649000,-251.0,0.0003168,2]
[426728568,1782762649000,-290.0,0.00031636,30]
[426728572,1782762649000,-251.0,0.0003168,2]
[426728574,1782762649000,-466.92151993,0.00031693,2]
[426728584,1782762649000,-2702.38,0.00032232,7]
[426728573,1782762649000,-201.26,0.0003168,3]
[426728565,1782762649000,-154.0,0.00031635,30]
[426728575,1782762649000,-2251.56,0.000317,7]
[426728579,1782762649000,-151.83365069,0.0003192,2]
[426728587,1782762649000,-9912.37,0.00032232,7]
[426728585,1782762649000,-59045.75,0.00032232,7]
[426728586,1782762649000,-516.24,0.00032232,7]
[426728581,1782762649000,-3735.7208,0.00032,2]
[426728588,1782762649000,-223.8679228,0.00032237,7]
[426728583,1782762649000,-311.49,0.00032232,7]
[426728576,1782762649000,-294.13762428,0.00031897,7]
[426728582,1782762649000,-500.0,0.00032093,7]
[426728578,1782762649000,-1632.96,0.000319,7]
[426728591,1782762649000,-2570.07,0.000323,7]
[426728577,1782762649000,-530.24337018,0.00031898,30]
[426728580,1782762649000,-475.04571273,0.00031963,30]
[426728659,1782762650000,-1000.0,0.00032877,10]
[426728648,1782762650000,-1000.0,0.00032877,10]
[426728651,1782762650000,-1000.0,0.00032877,10]
[426728655,1782762650000,-1000.0,0.00032877,10]
[426728654,1782762650000,-1000.0,0.00032877,10]
[426728653,1782762650000,-1000.0,0.00032877,10]
[426728657,1782762650000,-1000.0,0.00032877,10]
[426728667,1782762650000,-1000.0,0.00032877,10]
[426728668,1782762650000,-1000.0,0.00032877,10]
[426728650,1782762650000,-1000.0,0.00032877,10]
[426728646,1782762650000,-1000.0,0.00032877,10]
[426728664,1782762650000,-1000.0,0.00032877,10]
[426728656,1782762650000,-1000.0,0.00032877,10]
[426728666,1782762650000,-1000.0,0.00032877,10]
[426728663,1782762650000,-1000.0,0.00032877,10]
[426728662,1782762650000,-1000.0,0.00032877,10]
[426728660,1782762650000,-1000.0,0.00032877,10]
[426728661,1782762650000,-1000.0,0.00032877,10]
[426728665,1782762650000,-1000.0,0.00032877,10]
[426728669,1782762650000,-1000.0,0.00032877,10]
[426728671,1782762650000,-1000.0,0.00032877,10]
[426728647,1782762650000,-1000.0,0.00032877,10]
[426728670,1782762650000,-1000.0,0.00032877,10]
[426728658,1782762650000,-1000.0,0.00032877,10]
[426728652,1782762650000,-1000.0,0.00032877,10]
[426728635,1782762650000,-2066.7244798,0.00032876,2]
[426728645,1782762650000,-1000.0,0.00032877,10]
[426728674,1782762650000,-280.61,0.00032877,2]
[426728620,1782762650000,-500.0,0.00032644,8]
[426728623,1782762650000,-201.09,0.00032693,3]
[426728624,1782762650000,-466.92151993,0.00032777,2]
[426728622,1782762650000,-220.41719032,0.00032693,2]
[426728621,1782762650000,-220.41719032,0.00032693,2]
[426728631,1782762650000,-3000.0,0.00032876,2]
[426728629,1782762650000,-302.0,0.00032876,14]
[426728628,1782762650000,-340.29399903,0.00032864,2]
[426728626,1782762650000,-151.83365069,0.00032847,2]
[426728627,1782762650000,-152.5325826,0.00032861,12]
[426728649,1782762650000,-1000.0,0.00032877,10]
[426728630,1782762650000,-3000.0,0.00032876,2]
[426728634,1782762650000,-3000.0,0.00032876,2]
[426728637,1782762650000,-1000.0,0.00032877,10]
[426728632,1782762650000,-3000.0,0.00032876,2]
[426728636,1782762650000,-500.0,0.00032876,2]
[426728640,1782762650000,-1000.0,0.00032877,10]
[426728643,1782762650000,-1000.0,0.00032877,10]
[426728633,1782762650000,-3000.0,0.00032876,2]
[426728638,1782762650000,-1000.0,0.00032877,10]
[426728642,1782762650000,-1000.0,0.00032877,10]
[426728639,1782762650000,-1000.0,0.00032877,10]
[426728644,1782762650000,-1000.0,0.00032877,10]
[426728641,1782762650000,-1000.0,0.00032877,10]
[426728677,1782762650000,-475.04571273,0.00032877,30]
[426728625,1782762650000,-176.74779006,0.00032802,30]
[426728672,1782762650000,-1000.0,0.00032877,10]
[426728703,1782762650000,-500.0,0.00033,20]
[426728706,1782762650000,-500.0,0.00033,20]
[426728705,1782762650000,-500.0,0.00033,20]
[426728716,1782762650000,-500.0,0.00033,20]
[426728708,1782762650000,-500.0,0.00033,20]
[426728711,1782762650000,-500.0,0.00033,20]
[426728715,1782762650000,-500.0,0.00033,20]
[426728710,1782762650000,-500.0,0.00033,20]
[426728712,1782762650000,-500.0,0.00033,20]
[426728709,1782762650000,-500.0,0.00033,20]
[426728713,1782762650000,-500.0,0.00033,20]
[426728700,1782762650000,-500.0,0.00033,20]
[426728707,1782762650000,-500.0,0.00033,20]
[426728718,1782762650000,-500.0,0.00033,20]
[426728719,1782762650000,-500.0,0.00033,20]
[426728722,1782762650000,-500.0,0.00033,20]
[426728720,1782762650000,-500.0,0.00033,20]
[426728721,1782762650000,-500.0,0.00033,20]
[426728727,1782762650000,-500.0,0.00033,20]
[426728723,1782762650000,-500.0,0.00033,20]
[426728724,1782762650000,-500.0,0.00033,20]
[426728726,1782762650000,-500.0,0.00033,20]
[426728725,1782762650000,-500.0,0.00033,20]
[426728673,1782762650000,-455.0,0.00032877,10]
[426728717,1782762650000,-500.0,0.00033,20]
[426728702,1782762650000,-500.0,0.00033,20]
[426728714,1782762650000,-500.0,0.00033,20]
[426728699,1782762650000,-500.0,0.00033,20]
[426728675,1782762650000,-500.0,0.00032877,2]
[426728701,1782762650000,-500.0,0.00033,20]
[426728676,1782762650000,-500.0,0.00032877,2]
[426728679,1782762650000,-195.99,0.000329,14]
[426728678,1782762650000,-1000.0,0.00032883,2]
[426728681,1782762650000,-493.42459802,0.00032945,2]
[426728680,1782762650000,-2251.56,0.000329,30]
[426728692,1782762650000,-500.0,0.00033,20]
[426728682,1782762650000,-1772.01846439,0.00032967,2]
[426728683,1782762650000,-152.0,0.00032987,10]
[426728685,1782762650000,-500.0,0.00033,20]
[426728686,1782762650000,-500.0,0.00033,20]
[426728691,1782762650000,-500.0,0.00033,20]
[426728687,1782762650000,-500.0,0.00033,20]
[426728704,1782762650000,-500.0,0.00033,20]
[426728690,1782762650000,-500.0,0.00033,20]
[426728694,1782762650000,-500.0,0.00033,20]
[426728696,1782762650000,-500.0,0.00033,20]
[426728695,1782762650000,-500.0,0.00033,20]
[426728698,1782762650000,-500.0,0.00033,20]
[426728697,1782762650000,-500.0,0.00033,20]
[426728688,1782762650000,-500.0,0.00033,20]
[426728684,1782762650000,-500.0,0.00033,20]
[426728689,1782762650000,-500.0,0.00033,20]
[426728693,1782762650000,-500.0,0.00033,20]
[426728770,1782762651000,-481.893979,0.00033517,7]
[426728758,1782762651000,-1632.96,0.000331,30]
[426728759,1782762651000,-475.04571273,0.00033181,30]
[426728762,1782762651000,-151.83365069,0.00033311,2]
[426728760,1782762651000,-188.0,0.00033181,30]
[426728761,1782762651000,-500.0,0.00033194,8]
[426728764,1782762651000,-200.0,0.000334,8]
[426728763,1782762651000,-2000.0,0.00033343,7]
[426728773,1782762651000,-300.0,0.00033542,2]
[426728765,1782762651000,-1136.4373935,0.00033425,2]
[426728767,1782762651000,-158.12465802,0.00033502,2]
[426728769,1782762651000,-307.886725,0.00033517,7]
[426728783,1782762651000,-300.0,0.00033542,2]
[426728766,1782762651000,-475.04571273,0.00033486,30]
[426728771,1782762651000,-3061.0,0.00033539,10]
[426728772,1782762651000,-300.0,0.00033542,2]
[426728774,1782762651000,-300.0,0.00033542,2]
[426728778,1782762651000,-300.0,0.00033542,2]
[426728777,1782762651000,-495.28773916,0.00033542,2]
[426728775,1782762651000,-300.0,0.00033542,2]
[426728776,1782762651000,-300.0,0.00033542,2]
[426728779,1782762651000,-368.9698289,0.00033542,2]
[426728780,1782762651000,-300.0,0.00033542,2]
[426728752,1782762651000,-440.05,0.00033,20]
[426728768,1782762651000,-1115.77004364,0.00033503,2]
[426728756,1782762651000,-653.64,0.000331,7]
[426728729,1782762651000,-500.0,0.00033,20]
[426728754,1782762651000,-16641.03377248,0.00033012,2]
[426728728,1782762651000,-500.0,0.00033,20]
[426728781,1782762651000,-300.0,0.00033542,2]
[426728731,1782762651000,-500.0,0.00033,20]
[426728733,1782762651000,-500.0,0.00033,20]
[426728730,1782762651000,-500.0,0.00033,20]
[426728734,1782762651000,-500.0,0.00033,20]
[426728736,1782762651000,-500.0,0.00033,20]
[426728739,1782762651000,-500.0,0.00033,20]
[426728738,1782762651000,-500.0,0.00033,20]
[426728737,1782762651000,-500.0,0.00033,20]
[426728735,1782762651000,-500.0,0.00033,20]
[426728732,1782762651000,-500.0,0.00033,20]
[426728757,1782762651000,-2570.07,0.000331,7]
[426728741,1782762651000,-500.0,0.00033,20]
[426728743,1782762651000,-500.0,0.00033,20]
[426728742,1782762651000,-500.0,0.00033,20]
[426728744,1782762651000,-500.0,0.00033,20]
[426728747,1782762651000,-500.0,0.00033,20]
[426728746,1782762651000,-500.0,0.00033,20]
[426728749,1782762651000,-500.0,0.00033,20]
[426728745,1782762651000,-500.0,0.00033,20]
[426728748,1782762651000,-500.0,0.00033,20]
[426728750,1782762651000,-500.0,0.00033,20]
[426728751,1782762651000,-500.0,0.00033,20]
[426728753,1782762651000,-170.98952655,0.00033,7]
[426728755,1782762651000,-2000.0,0.00033014,50]
[426728740,1782762651000,-500.0,0.00033,20]
[426728784,1782762651000,-607.84242655,0.00033542,2]
[426728794,1782762651000,-303.73373497,0.00033542,2]
[426728785,1782762651000,-300.0,0.00033542,2]
[426728819,1782762651000,-523.24060639,0.00033542,2]
[426728816,1782762651000,-300.0,0.00033542,2]
[426728815,1782762651000,-311.22255108,0.00033542,2]
[426728818,1782762651000,-300.0,0.00033542,2]
[426728820,1782762651000,-300.0,0.00033542,2]
[426728822,1782762651000,-300.0,0.00033542,2]
[426728825,1782762651000,-300.0,0.00033542,2]
[426728833,1782762651000,-300.0,0.00033542,2]
[426728826,1782762651000,-584.66801755,0.00033542,2]
[426728827,1782762651000,-300.0,0.00033542,2]
[426728824,1782762651000,-513.95923093,0.00033542,2]
[426728829,1782762651000,-300.0,0.00033542,2]
[426728828,1782762651000,-454.26701287,0.00033542,2]
[426728832,1782762651000,-300.0,0.00033542,2]
[426728823,1782762651000,-300.0,0.00033542,2]
[426728782,1782762651000,-300.0,0.00033542,2]
[426728831,1782762651000,-300.0,0.00033542,2]
[426728835,1782762651000,-446.09705538,0.00033542,2]
[426728837,1782762651000,-300.0,0.00033542,2]
[426728834,1782762651000,-300.0,0.00033542,2]
[426728836,1782762651000,-300.0,0.00033542,2]
[426728838,1782762651000,-300.0,0.00033542,2]
[426728841,1782762651000,-1101.0618519,0.00033542,2]
[426728839,1782762651000,-300.0,0.00033542,2]
[426728840,1782762651000,-300.0,0.00033542,2]
[426728817,1782762651000,-569.01654071,0.00033542,2]
[426728814,1782762651000,-300.0,0.00033542,2]
[426728830,1782762651000,-300.0,0.00033542,2]
[426728812,1782762651000,-300.0,0.00033542,2]
[426728813,1782762651000,-576.43989485,0.00033542,2]
[426728786,1782762651000,-300.0,0.00033542,2]
[426728788,1782762651000,-300.0,0.00033542,2]
[426728787,1782762651000,-300.0,0.00033542,2]
[426728790,1782762651000,-300.0,0.00033542,2]
[426728791,1782762651000,-730.12015411,0.00033542,2]
[426728793,1782762651000,-300.0,0.00033542,2]
[426728792,1782762651000,-300.0,0.00033542,2]
[426728795,1782762651000,-300.0,0.00033542,2]
[426728797,1782762651000,-300.0,0.00033542,2]
[426728796,1782762651000,-302.16203863,0.00033542,2]
[426728798,1782762651000,-300.0,0.00033542,2]
[426728802,1782762651000,-300.0,0.00033542,2]
[426728789,1782762651000,-536.77715252,0.00033542,2]
[426728800,1782762651000,-300.0,0.00033542,2]
[426728810,1782762651000,-954.30228826,0.00033542,2]
[426728799,1782762651000,-300.0,0.00033542,2]
[426728821,1782762651000,-300.0,0.00033542,2]
[426728811,1782762651000,-1807.30940739,0.00033542,2]
[426728809,1782762651000,-300.0,0.00033542,2]
[426728808,1782762651000,-300.0,0.00033542,2]
[426728805,1782762651000,-345.7536,0.00033542,2]
[426728804,1782762651000,-300.0,0.00033542,2]
[426728803,1782762651000,-300.0,0.00033542,2]
[426728806,1782762651000,-300.0,0.00033542,2]
[426728801,1782762651000,-300.0,0.00033542,2]
[426728807,1782762651000,-300.0,0.00033542,2]
[426728862,1782762652000,-300.0,0.00033542,2]
[426728868,1782762652000,-300.0,0.00033542,2]
[426728861,1782762652000,-300.0,0.00033542,2]
[426728863,1782762652000,-536.77715252,0.00033542,2]
[426728865,1782762652000,-730.12015411,0.00033542,2]
[426728866,1782762652000,-300.0,0.00033542,2]
[426728867,1782762652000,-300.0,0.00033542,2]
[426728874,1782762652000,-300.0,0.00033542,2]
[426728871,1782762652000,-300.0,0.00033542,2]
[426728872,1782762652000,-300.0,0.00033542,2]
[426728870,1782762652000,-300.0,0.00033542,2]
[426728873,1782762652000,-300.0,0.00033542,2]
[426728878,1782762652000,-345.7536,0.00033542,2]
[426728879,1782762652000,-300.0,0.00033542,2]
[426728860,1782762652000,-300.0,0.00033542,2]
[426728869,1782762652000,-302.16203863,0.00033542,2]
[426728864,1782762652000,-300.0,0.00033542,2]
[426728847,1782762652000,-300.0,0.00033542,2]
[426728858,1782762652000,-300.0,0.00033542,2]
[426728882,1782762652000,-300.0,0.00033542,2]
[426728842,1782762652000,-300.0,0.00033542,2]
[426728844,1782762652000,-300.0,0.00033542,2]
[426728843,1782762652000,-300.0,0.00033542,2]
[426728845,1782762652000,-300.0,0.00033542,2]
[426728849,1782762652000,-300.0,0.00033542,2]
[426728848,1782762652000,-300.0,0.00033542,2]
[426728859,1782762652000,-300.0,0.00033542,2]
[426728846,1782762652000,-300.0,0.00033542,2]
[426728852,1782762652000,-496.30087066,0.00033542,2]
[426728851,1782762652000,-495.28773916,0.00033542,2]
[426728853,1782762652000,-300.0,0.00033542,2]
[426728857,1782762652000,-607.84242655,0.00033542,2]
[426728854,1782762652000,-300.0,0.00033542,2]
[426728856,1782762652000,-300.0,0.00033542,2]
[426728855,1782762652000,-300.0,0.00033542,2]
[426728850,1782762652000,-300.0,0.00033542,2]
[426728881,1782762652000,-300.0,0.00033542,2]
[426728880,1782762652000,-300.0,0.00033542,2]
[426728876,1782762652000,-300.0,0.00033542,2]
[426728903,1782762652000,-300.0,0.00033542,2]
[426728902,1782762652000,-300.0,0.00033542,2]
[426728905,1782762652000,-300.0,0.00033542,2]
[426728904,1782762652000,-300.0,0.00033542,2]
[426728907,1782762652000,-300.0,0.00033542,2]
[426728909,1782762652000,-300.0,0.00033542,2]
[426728906,1782762652000,-300.0,0.00033542,2]
[426728901,1782762652000,-454.26701287,0.00033542,2]
[426728908,1782762652000,-446.09705538,0.00033542,2]
[426728913,1782762652000,-250.0,0.00033544,7]
[426728914,1782762652000,-250.0,0.00033544,7]
[426728910,1782762652000,-300.0,0.00033542,2]
[426728915,1782762652000,-514.01808118,0.00033595,2]
[426728916,1782762652000,-1529.18,0.00033601,2]
[426728917,1782762652000,-177.0,0.00033632,30]
[426728877,1782762652000,-300.0,0.00033542,2]
[426728911,1782762652000,-300.0,0.00033542,2]
[426728897,1782762652000,-513.95923093,0.00033542,2]
[426728912,1782762652000,-1737.06,0.00033544,7]
[426728899,1782762652000,-584.66801755,0.00033542,2]
[426728898,1782762652000,-300.0,0.00033542,2]
[426728918,1782762652000,-426.0,0.00033632,30]
[426728875,1782762652000,-300.0,0.00033542,2]
[426728883,1782762652000,-954.30228826,0.00033542,2]
[426728886,1782762652000,-576.43989485,0.00033542,2]
[426728885,1782762652000,-300.0,0.00033542,2]
[426728884,1782762652000,-1807.30940739,0.00033542,2]
[426728887,1782762652000,-300.0,0.00033542,2]
[426728888,1782762652000,-311.22255108,0.00033542,2]
[426728891,1782762652000,-300.0,0.00033542,2]
[426728890,1782762652000,-569.01654071,0.00033542,2]
[426728892,1782762652000,-523.24060639,0.00033542,2]
[426728893,1782762652000,-300.0,0.00033542,2]
[426728894,1782762652000,-300.0,0.00033542,2]
[426728895,1782762652000,-300.0,0.00033542,2]
[426728896,1782762652000,-300.0,0.00033542,2]
[426728889,1782762652000,-300.0,0.00033542,2]
[426728900,1782762652000,-300.0,0.00033542,2]
[426728953,1782762653000,-2000.0,0.000338,7]
[426728951,1782762653000,-475.04571273,0.0003379,30]
[426728952,1782762653000,-2251.56,0.000338,30]
[426728950,1782762653000,-1730.38,0.00033781,2]
[426728949,1782762653000,-1095.56,0.00033781,2]
[426728955,1782762653000,-174.77,0.000339,120]
[426728948,1782762653000,-1000.0,0.00033781,2]
[426728956,1782762653000,-536.02494109,0.00033952,2]
[426728946,1782762653000,-1000.0,0.00033781,2]
[426728954,1782762653000,-3032.4389354,0.00033873,2]
[426728964,1782762653000,-1000.0,0.00033973,7]
[426728973,1782762653000,-1000.0,0.00033973,7]
[426728959,1782762653000,-5000.0,0.00033969,2]
[426728957,1782762653000,-312.03666516,0.00033952,2]
[426728962,1782762653000,-5000.0,0.00033969,2]
[426728960,1782762653000,-5000.0,0.00033969,2]
[426728963,1782762653000,-500.0,0.00033972,7]
[426728965,1782762653000,-1000.0,0.00033973,7]
[426728968,1782762653000,-1000.0,0.00033973,7]
[426728971,1782762653000,-1000.0,0.00033973,7]
[426728970,1782762653000,-1000.0,0.00033973,7]
[426728967,1782762653000,-1000.0,0.00033973,7]
[426728947,1782762653000,-1000.0,0.00033781,2]
[426728958,1782762653000,-6896.2026673,0.00033969,2]
[426728945,1782762653000,-151.83365069,0.00033774,2]
[426728929,1782762653000,-65502.75413252,0.0003366,2]
[426728939,1782762653000,-500.0,0.00033725,2]
[426728920,1782762653000,-683.0,0.00033633,30]
[426728921,1782762653000,-1027.0,0.00033633,30]
[426728919,1782762653000,-176.0,0.00033632,30]
[426728922,1782762653000,-353.0,0.00033633,30]
[426728924,1782762653000,-168.0,0.00033635,30]
[426728927,1782762653000,-186.0,0.00033636,30]
[426728974,1782762653000,-1000.0,0.00033973,7]
[426728931,1782762653000,-1535.66892079,0.00033676,2]
[426728933,1782762653000,-1372.09311645,0.00033676,2]
[426728925,1782762653000,-154.0,0.00033635,30]
[426728930,1782762653000,-1529.18,0.0003367,2]
[426728941,1782762653000,-500.0,0.00033745,9]
[426728926,1782762653000,-790.0,0.00033635,30]
[426728923,1782762653000,-1115.77004364,0.00033634,2]
[426728932,1782762653000,-1617.9002929,0.00033676,2]
[426728935,1782762653000,-154.6391,0.00033698,2]
[426728934,1782762653000,-1455.87485689,0.00033676,2]
[426728938,1782762653000,-350.92,0.00033706,3]
[426728943,1782762653000,-1730.37,0.00033764,2]
[426728942,1782762653000,-1000.0,0.00033764,2]
[426728940,1782762653000,-103086.0,0.00033726,30]
[426728937,1782762653000,-2570.07,0.000337,7]
[426728936,1782762653000,-653.64,0.000337,7]
[426728944,1782762653000,-1153.58,0.00033764,2]
[426728928,1782762653000,-290.0,0.00033636,30]
[426728969,1782762653000,-1000.0,0.00033973,7]
[426728961,1782762653000,-5000.0,0.00033969,2]
[426728972,1782762653000,-1000.0,0.00033973,7]
[426729005,1782762653000,-1000.0,0.00033973,7]
[426729000,1782762653000,-1000.0,0.00033973,7]
[426729001,1782762653000,-1000.0,0.00033973,7]
[426729004,1782762653000,-1000.0,0.00033973,7]
[426729017,1782762653000,-1000.0,0.00033973,7]
[426729016,1782762653000,-1000.0,0.00033973,7]
[426729008,1782762653000,-1000.0,0.00033973,7]
[426729018,1782762653000,-1000.0,0.00033973,7]
[426729019,1782762653000,-1000.0,0.00033973,7]
[426729015,1782762653000,-1000.0,0.00033973,7]
[426729011,1782762653000,-1000.0,0.00033973,7]
[426728998,1782762653000,-1000.0,0.00033973,7]
[426729010,1782762653000,-1000.0,0.00033973,7]
[426729009,1782762653000,-1000.0,0.00033973,7]
[426729012,1782762653000,-1000.0,0.00033973,7]
[426729013,1782762653000,-1000.0,0.00033973,7]
[426729020,1782762653000,-1000.0,0.00033973,7]
[426729021,1782762653000,-1432.37233041,0.00033973,7]
[426729022,1782762653000,-15000.0,0.00033997,2]
[426729026,1782762653000,-785.0,0.00034028,2]
[426729023,1782762653000,-348.34860366,0.00034,2]
[426729024,1782762653000,-1632.96,0.00034,30]
[426728966,1782762653000,-1000.0,0.00033973,7]
[426729025,1782762653000,-793.99279464,0.00034028,2]
[426729007,1782762653000,-1000.0,0.00033973,7]
[426729003,1782762653000,-1000.0,0.00033973,7]
[426729014,1782762653000,-1000.0,0.00033973,7]
[426729002,1782762653000,-1000.0,0.00033973,7]
[426728979,1782762653000,-1000.0,0.00033973,7]
[426728999,1782762653000,-1000.0,0.00033973,7]
[426728978,1782762653000,-1000.0,0.00033973,7]
[426728976,1782762653000,-1000.0,0.00033973,7]
[426728983,1782762653000,-1000.0,0.00033973,7]
[426728977,1782762653000,-1000.0,0.00033973,7]
[426728981,1782762653000,-1000.0,0.00033973,7]
[426728980,1782762653000,-1000.0,0.00033973,7]
[426728984,1782762653000,-1000.0,0.00033973,7]
[426728982,1782762653000,-1000.0,0.00033973,7]
[426728985,1782762653000,-1000.0,0.00033973,7]
[426728989,1782762653000,-1000.0,0.00033973,7]
[426728975,1782762653000,-1000.0,0.00033973,7]
[426728992,1782762653000,-1000.0,0.00033973,7]